[Event "Early-Titled-Tuesday-Blitz-February-13-2024"]
[Site "Chess.com"]
[Date "2024.02.13"]
[Round "11"]
[White "GMRAVEN_ON_YOUTUBE"]
[Black "jaskol95"]
[Result "1-0"]
[WhiteElo "2785"]
[BlackElo "2578"]
[TimeControl "180+1"]
[EndTime "10:10:05 PST"]
[Termination "GMRAVEN_ON_YOUTUBE won by checkmate"]

1. f4 {[%clk 0:03:00.9]} 1... d5 {[%clk 0:02:57]} 2. Nf3 {[%clk 0:03:00.4]} 2...
Nf6 {[%clk 0:02:54.8]} 3. e3 {[%clk 0:03:00.8]} 3... Bg4 {[%clk 0:02:54.7]} 4.
h3 {[%clk 0:03:00.5]} 4... Bxf3 {[%clk 0:02:54.8]} 5. Qxf3 {[%clk 0:03:01.4]}
5... e6 {[%clk 0:02:55.4]} 6. Nc3 {[%clk 0:03:01.5]} 6... c6 {[%clk 0:02:56]} 7.
d3 {[%clk 0:03:01]} 7... Nbd7 {[%clk 0:02:56.6]} 8. e4 {[%clk 0:02:58.2]} 8...
Bb4 {[%clk 0:02:46.9]} 9. Bd2 {[%clk 0:02:56.2]} 9... d4 {[%clk 0:02:37.9]} 10.
Nb1 {[%clk 0:02:56.3]} 10... Qe7 {[%clk 0:02:25.4]} 11. g4 {[%clk 0:02:51]}
11... e5 {[%clk 0:02:19.3]} 12. g5 {[%clk 0:02:48.3]} 12... Ng8 {[%clk
0:02:19.6]} 13. h4 {[%clk 0:02:48.8]} 13... O-O-O {[%clk 0:02:17.6]} 14. Bh3
{[%clk 0:02:48.8]} 14... Kb8 {[%clk 0:02:17.2]} 15. O-O {[%clk 0:02:42.3]} 15...
Bd6 {[%clk 0:02:15.4]} 16. f5 {[%clk 0:02:40]} 16... f6 {[%clk 0:02:14.4]} 17.
Na3 {[%clk 0:02:36.1]} 17... Bxa3 {[%clk 0:02:02.9]} 18. bxa3 {[%clk 0:02:37]}
18... Qxa3 {[%clk 0:02:03.2]} 19. Rab1 {[%clk 0:02:34.4]} 19... Qxa2 {[%clk
0:01:58.5]} 20. Bb4 {[%clk 0:02:34.2]} 20... c5 {[%clk 0:01:47.4]} 21. Ra1
{[%clk 0:02:30]} 21... Qxc2 {[%clk 0:01:34]} 22. Rfc1 {[%clk 0:02:29.4]} 22...
Qb3 {[%clk 0:01:29.7]} 23. Rcb1 {[%clk 0:02:21.3]} 23... Qf7 {[%clk 0:01:25.4]}
24. g6 {[%clk 0:02:21.6]} 24... Qe7 {[%clk 0:01:22.7]} 25. Ba5 {[%clk
0:02:17.8]} 25... Rc8 {[%clk 0:01:20.4]} 26. h5 {[%clk 0:02:16]} 26... Qd6
{[%clk 0:01:04]} 27. Qg3 {[%clk 0:02:14.1]} 27... Ne7 {[%clk 0:00:52.9]} 28. Bg4
{[%clk 0:02:14.3]} 28... Nc6 {[%clk 0:00:49.2]} 29. Bd2 {[%clk 0:02:11]} 29...
Nb6 {[%clk 0:00:46.3]} 30. Bd1 {[%clk 0:02:08.8]} 30... c4 {[%clk 0:00:42.2]}
31. dxc4 {[%clk 0:01:58.6]} 31... Nxc4 {[%clk 0:00:42.4]} 32. Qb3 {[%clk
0:01:57]} 32... Nb6 {[%clk 0:00:38.2]} 33. Qd3 {[%clk 0:01:54.6]} 33... hxg6
{[%clk 0:00:37.4]} 34. hxg6 {[%clk 0:01:54.5]} 34... Rh4 {[%clk 0:00:28.8]} 35.
Be1 {[%clk 0:01:53.6]} 35... Rhh8 {[%clk 0:00:18.7]} 36. Bb3 {[%clk 0:01:50.8]}
36... Nd7 {[%clk 0:00:18.5]} 37. Be6 {[%clk 0:01:47.7]} 37... Nc5 {[%clk
0:00:18.9]} 38. Qb5 {[%clk 0:01:44.2]} 38... Rc7 {[%clk 0:00:17.2]} 39. Bd5
{[%clk 0:01:43.1]} 39... Rh3 {[%clk 0:00:11]} 40. Rc1 {[%clk 0:01:29]} 40... Ne7
{[%clk 0:00:10.7]} 41. Bb4 {[%clk 0:01:12]} 41... Nxd5 {[%clk 0:00:10]} 42. Bxc5
{[%clk 0:01:12.2]} 42... Qc6 {[%clk 0:00:03.8]} 43. Bxa7+ {[%clk 0:01:11.8]}
43... Kc8 {[%clk 0:00:03.5]} 44. Rxc6 {[%clk 0:01:10.6]} 44... bxc6 {[%clk
0:00:03.7]} 45. Qb8+ {[%clk 0:01:10.8]} 45... Kd7 {[%clk 0:00:03.8]} 46. exd5
{[%clk 0:01:11.4]} 46... cxd5 {[%clk 0:00:04.5]} 47. Bb6 {[%clk 0:01:09.4]}
47... Rcc3 {[%clk 0:00:04.4]} 48. Qd8+ {[%clk 0:01:09.1]} 48... Kc6 {[%clk
0:00:05]} 49. Qc7+ {[%clk 0:01:07.1]} 49... Kb5 {[%clk 0:00:05.6]} 50. Rb1+
{[%clk 0:01:07.1]} 50... Rb3 {[%clk 0:00:04.8]} 51. Rxb3+ {[%clk 0:01:04.1]}
51... Rxb3 {[%clk 0:00:04.6]} 52. Qc5+ {[%clk 0:01:05]} 52... Ka6 {[%clk
0:00:05.1]} 53. Qa5+ {[%clk 0:01:05.6]} 53... Kb7 {[%clk 0:00:05.3]} 54. Qxd5+
{[%clk 0:01:06.3]} 54... Kxb6 {[%clk 0:00:05.4]} 55. Qxb3+ {[%clk 0:01:07.2]}
55... Kc5 {[%clk 0:00:05.6]} 56. Qf7 {[%clk 0:01:07.4]} 56... d3 {[%clk
0:00:06.1]} 57. Qxg7 {[%clk 0:01:07.5]} 57... e4 {[%clk 0:00:06.5]} 58. Qxf6
{[%clk 0:01:07.1]} 58... e3 {[%clk 0:00:06.8]} 59. Qc3+ {[%clk 0:01:07.4]} 59...
Kd5 {[%clk 0:00:07.2]} 60. Qxd3+ {[%clk 0:01:08.3]} 60... Ke5 {[%clk 0:00:07.9]}
61. Qxe3+ {[%clk 0:01:09.2]} 61... Kf6 {[%clk 0:00:08.4]} 62. Qe6+ {[%clk
0:01:08.3]} 62... Kg7 {[%clk 0:00:08.7]} 63. f6+ {[%clk 0:01:02.6]} 63... Kh8
{[%clk 0:00:07.8]} 64. f7 {[%clk 0:01:02.2]} 64... Kg7 {[%clk 0:00:07.2]} 65.
Qf5 {[%clk 0:01:02.8]} 65... Kf8 {[%clk 0:00:07.2]} 66. Kh1 {[%clk 0:01:01.4]}
66... Kg7 {[%clk 0:00:08.1]} 67. f8=Q# {[%clk 0:01:02.1]} 1-0

[Event "Early-Titled-Tuesday-Blitz-February-13-2024"]
[Site "Chess.com"]
[Date "2024.02.13"]
[Round "11"]
[White "KNVB"]
[Black "SahibSinghKnight"]
[Result "1-0"]
[WhiteElo "2857"]
[BlackElo "2601"]
[TimeControl "180+1"]
[EndTime "10:10:11 PST"]
[Termination "KNVB won by resignation"]

1. d4 {[%clk 0:03:00.9]} 1... Nf6 {[%clk 0:02:56.6]} 2. Bf4 {[%clk 0:02:58.2]}
2... e6 {[%clk 0:02:54.7]} 3. e3 {[%clk 0:02:56]} 3... d5 {[%clk 0:02:54.6]} 4.
Nf3 {[%clk 0:02:56]} 4... Bd6 {[%clk 0:02:51.4]} 5. Nbd2 {[%clk 0:02:56.3]} 5...
O-O {[%clk 0:02:50.4]} 6. Bd3 {[%clk 0:02:55]} 6... b6 {[%clk 0:02:50.6]} 7. Qe2
{[%clk 0:02:51.7]} 7... Bb7 {[%clk 0:02:47.6]} 8. O-O {[%clk 0:02:51.6]} 8...
Nbd7 {[%clk 0:02:34.7]} 9. Ne5 {[%clk 0:02:45.4]} 9... g6 {[%clk 0:02:08.8]} 10.
c4 {[%clk 0:02:25.6]} 10... Nh5 {[%clk 0:01:58.4]} 11. Bh6 {[%clk 0:02:09.3]}
11... Re8 {[%clk 0:01:50.5]} 12. f4 {[%clk 0:01:58.8]} 12... c5 {[%clk
0:01:33.7]} 13. Rad1 {[%clk 0:01:16]} 13... cxd4 {[%clk 0:01:26.5]} 14. exd4
{[%clk 0:01:16.9]} 14... dxc4 {[%clk 0:01:10.8]} 15. Ndxc4 {[%clk 0:01:16.9]}
15... Bc7 {[%clk 0:01:02.6]} 16. Bc2 {[%clk 0:00:45.7]} 16... b5 {[%clk
0:00:40.5]} 17. Ne3 {[%clk 0:00:10.9]} 17... a6 {[%clk 0:00:29.1]} 18. Qg4
{[%clk 0:00:05.9]} 18... Ndf6 {[%clk 0:00:25.2]} 19. Qh3 {[%clk 0:00:05.9]}
19... Nd5 {[%clk 0:00:24.5]} 20. Rf3 {[%clk 0:00:01.7]} 20... Nxe3 {[%clk
0:00:16.2]} 21. Rxe3 {[%clk 0:00:01.4]} 21... Bxe5 {[%clk 0:00:12.1]} 22. fxe5
{[%clk 0:00:02.3]} 22... Rc8 {[%clk 0:00:11.3]} 23. Bd3 {[%clk 0:00:01.6]} 23...
Qxd4 {[%clk 0:00:10.8]} 24. Kf1 {[%clk 0:00:01.8]} 24... Nf4 {[%clk 0:00:10.2]}
25. Qg3 {[%clk 0:00:01.7]} 25... Bxg2+ {[%clk 0:00:08.5]} 26. Ke1 {[%clk
0:00:01.7]} 26... Nxd3+ {[%clk 0:00:04.3]} 27. Rexd3 {[%clk 0:00:02.6]} 27...
Qe4+ {[%clk 0:00:04.5]} 28. Kf2 {[%clk 0:00:02.9]} 28... Rc2+ {[%clk 0:00:02.2]}
29. R3d2 {[%clk 0:00:03.2]} 29... Rxd2+ {[%clk 0:00:02.8]} 30. Rxd2 {[%clk
0:00:04.1]} 30... Bh1 {[%clk 0:00:03.2]} 31. Re2 {[%clk 0:00:02.9]} 31... Qf5+
{[%clk 0:00:03]} 32. Kg1 {[%clk 0:00:02.7]} 32... Bf3 {[%clk 0:00:02.9]} 33. Rf2
{[%clk 0:00:02.7]} 33... Qb1+ {[%clk 0:00:03.8]} 34. Rf1 {[%clk 0:00:03.4]}
34... Qe4 {[%clk 0:00:04.1]} 35. Qxf3 {[%clk 0:00:03.2]} 35... Qd4+ {[%clk
0:00:04.3]} 36. Qf2 {[%clk 0:00:03]} 36... Qd7 {[%clk 0:00:04.4]} 37. h3 {[%clk
0:00:02.5]} 37... f6 {[%clk 0:00:04.2]} 38. Qxf6 {[%clk 0:00:02.6]} 38... Qd4+
{[%clk 0:00:04.4]} 39. Rf2 {[%clk 0:00:02.8]} 39... Qd1+ {[%clk 0:00:04.6]} 40.
Kh2 {[%clk 0:00:03.4]} 40... Qd7 {[%clk 0:00:04.6]} 41. Qf8+ {[%clk 0:00:04]}
1-0

[Event "Early-Titled-Tuesday-Blitz-February-13-2024"]
[Site "Chess.com"]
[Date "2024.02.13"]
[Round "11"]
[White "NM_Antelacus"]
[Black "LangesNasenhaar"]
[Result "0-1"]
[WhiteElo "2248"]
[BlackElo "2430"]
[TimeControl "180+1"]
[EndTime "10:10:13 PST"]
[Termination "LangesNasenhaar won on time"]

1. e4 {[%clk 0:03:00.9]} 1... g6 {[%clk 0:02:58.8]} 2. d4 {[%clk 0:03:00.1]}
2... Bg7 {[%clk 0:02:59.4]} 3. c4 {[%clk 0:03:00]} 3... c6 {[%clk 0:03:00]} 4.
Nc3 {[%clk 0:02:59.9]} 4... d6 {[%clk 0:03:00.4]} 5. Nf3 {[%clk 0:02:59.1]} 5...
e5 {[%clk 0:02:59.1]} 6. dxe5 {[%clk 0:02:55.3]} 6... dxe5 {[%clk 0:02:59.3]} 7.
Qxd8+ {[%clk 0:02:53.3]} 7... Kxd8 {[%clk 0:02:59.6]} 8. Be3 {[%clk 0:02:52]}
8... f6 {[%clk 0:02:56]} 9. O-O-O+ {[%clk 0:02:49.2]} 9... Kc7 {[%clk
0:02:51.3]} 10. Bc5 {[%clk 0:02:43]} 10... Bg4 {[%clk 0:02:47.3]} 11. Bd6+
{[%clk 0:02:36.5]} 11... Kc8 {[%clk 0:02:46.4]} 12. Be2 {[%clk 0:02:31.2]} 12...
Nh6 {[%clk 0:02:44.4]} 13. h3 {[%clk 0:02:30.3]} 13... Bxf3 {[%clk 0:02:44]} 14.
Bxf3 {[%clk 0:02:29.8]} 14... Nd7 {[%clk 0:02:29.9]} 15. Ba3 {[%clk 0:02:20.6]}
15... Bf8 {[%clk 0:02:16.7]} 16. Bxf8 {[%clk 0:02:18]} 16... Nxf8 {[%clk
0:02:13.1]} 17. g3 {[%clk 0:02:17.3]} 17... Kc7 {[%clk 0:02:09.8]} 18. Bg4
{[%clk 0:02:09.8]} 18... Rd8 {[%clk 0:02:07.2]} 19. Rxd8 {[%clk 0:02:07.8]}
19... Kxd8 {[%clk 0:02:08.1]} 20. Rd1+ {[%clk 0:02:06.1]} 20... Kc7 {[%clk
0:02:08.2]} 21. f4 {[%clk 0:01:58.1]} 21... Nxg4 {[%clk 0:02:05]} 22. hxg4
{[%clk 0:01:57.4]} 22... Ne6 {[%clk 0:02:04.3]} 23. Ne2 {[%clk 0:01:53]} 23...
Rd8 {[%clk 0:02:01.4]} 24. Rxd8 {[%clk 0:01:51.5]} 24... Kxd8 {[%clk 0:01:57.8]}
25. Kd2 {[%clk 0:01:49.2]} 25... Kc7 {[%clk 0:01:50.3]} 26. Ke3 {[%clk
0:01:40.6]} 26... a5 {[%clk 0:01:45.4]} 27. Nc3 {[%clk 0:01:35.1]} 27... Kd6
{[%clk 0:01:41.5]} 28. f5 {[%clk 0:01:20.9]} 28... Nd4 {[%clk 0:01:36.4]} 29.
Na4 {[%clk 0:01:07.6]} 29... g5 {[%clk 0:01:29.2]} 30. b3 {[%clk 0:01:03.5]}
30... Nc2+ {[%clk 0:01:20.6]} 31. Kd2 {[%clk 0:01:03.1]} 31... Nb4 {[%clk
0:01:12.3]} 32. a3 {[%clk 0:01:01]} 32... Na6 {[%clk 0:01:10.8]} 33. Kc3 {[%clk
0:00:57.5]} 33... b5 {[%clk 0:01:03.3]} 34. cxb5 {[%clk 0:00:54.8]} 34... cxb5
{[%clk 0:01:03.4]} 35. Nb6 {[%clk 0:00:39.5]} 35... Nc5 {[%clk 0:01:03.3]} 36.
Nc8+ {[%clk 0:00:36.1]} 36... Kc7 {[%clk 0:00:45.2]} 37. Ne7 {[%clk 0:00:34.7]}
37... Nxe4+ {[%clk 0:00:43.6]} 38. Kd3 {[%clk 0:00:30.8]} 38... Nc5+ {[%clk
0:00:36.6]} 39. Kc3 {[%clk 0:00:26.4]} 39... Kd6 {[%clk 0:00:31.9]} 40. Ng8
{[%clk 0:00:24.1]} 40... Nd7 {[%clk 0:00:32.1]} 41. b4 {[%clk 0:00:19.1]} 41...
a4 {[%clk 0:00:32]} 42. Kd3 {[%clk 0:00:18.5]} 42... Kc7 {[%clk 0:00:13.8]} 43.
Ke4 {[%clk 0:00:18.1]} 43... Kd8 {[%clk 0:00:09.5]} 44. Kd5 {[%clk 0:00:16.1]}
44... Ke8 {[%clk 0:00:08.9]} 0-1

[Event "Early-Titled-Tuesday-Blitz-February-13-2024"]
[Site "Chess.com"]
[Date "2024.02.13"]
[Round "11"]
[White "miraitrunks"]
[Black "carloseduar100"]
[Result "1-0"]
[WhiteElo "2200"]
[BlackElo "2327"]
[TimeControl "180+1"]
[EndTime "10:10:13 PST"]
[Termination "miraitrunks won by checkmate"]

1. e4 {[%clk 0:01:50.7]} 1... e6 {[%clk 0:02:59.4]} 2. Nc3 {[%clk 0:01:50]} 2...
d5 {[%clk 0:02:59]} 3. Nf3 {[%clk 0:01:50.9]} 3... Nf6 {[%clk 0:02:58.6]} 4. e5
{[%clk 0:01:51.1]} 4... Nfd7 {[%clk 0:02:58.8]} 5. d4 {[%clk 0:01:51.9]} 5... c5
{[%clk 0:02:59.2]} 6. dxc5 {[%clk 0:01:52.8]} 6... Nc6 {[%clk 0:02:59]} 7. Bf4
{[%clk 0:01:52.2]} 7... Bxc5 {[%clk 0:02:56.3]} 8. Bd3 {[%clk 0:01:51.9]} 8...
h6 {[%clk 0:02:52.3]} 9. h4 {[%clk 0:01:51.1]} 9... Qc7 {[%clk 0:02:46.4]} 10.
Qe2 {[%clk 0:01:50.8]} 10... a6 {[%clk 0:02:45.8]} 11. O-O {[%clk 0:01:48.1]}
11... b5 {[%clk 0:02:45.8]} 12. a3 {[%clk 0:01:47.6]} 12... g5 {[%clk
0:02:45.9]} 13. hxg5 {[%clk 0:01:44.7]} 13... hxg5 {[%clk 0:02:46.8]} 14. Nxg5
{[%clk 0:01:44.8]} 14... Ncxe5 {[%clk 0:02:42.1]} 15. Rfe1 {[%clk 0:01:26.7]}
15... Bd6 {[%clk 0:02:42]} 16. Bxb5 {[%clk 0:01:19.5]} 16... Ke7 {[%clk
0:01:31.5]} 17. Bxd7 {[%clk 0:01:15.7]} 17... Bxd7 {[%clk 0:01:15.6]} 18. Bxe5
{[%clk 0:01:13.7]} 18... Bxe5 {[%clk 0:01:10.1]} 19. Qxe5 {[%clk 0:01:13.4]}
19... Qxe5 {[%clk 0:01:10.3]} 20. Rxe5 {[%clk 0:01:13.7]} 20... f6 {[%clk
0:00:58.5]} 21. Nxd5+ {[%clk 0:01:06.8]} 21... Kd6 {[%clk 0:00:58.9]} 22. Nxf6
{[%clk 0:01:01]} 22... Kxe5 {[%clk 0:00:57.4]} 23. Nxd7+ {[%clk 0:01:01]} 23...
Kf5 {[%clk 0:00:56.8]} 24. Nf3 {[%clk 0:01:00.9]} 24... Rac8 {[%clk 0:00:52]}
25. Re1 {[%clk 0:00:46.7]} 25... Rxc2 {[%clk 0:00:31.4]} 26. Re5+ {[%clk
0:00:45.8]} 26... Kf4 {[%clk 0:00:29.6]} 27. Re3 {[%clk 0:00:33.9]} 27... Rxb2
{[%clk 0:00:23.8]} 28. g3+ {[%clk 0:00:27.9]} 28... Kf5 {[%clk 0:00:20.1]} 29.
Nd4+ {[%clk 0:00:28]} 29... Kg4 {[%clk 0:00:18.4]} 30. Kg2 {[%clk 0:00:17]}
30... Rd8 {[%clk 0:00:15.7]} 31. Ne5+ {[%clk 0:00:15.7]} 31... Kg5 {[%clk
0:00:15.1]} 32. Nxe6+ {[%clk 0:00:15.9]} 32... Kf5 {[%clk 0:00:14.2]} 33. Nxd8
{[%clk 0:00:16.8]} 33... a5 {[%clk 0:00:14.6]} 34. Ndc6 {[%clk 0:00:16.6]} 34...
a4 {[%clk 0:00:14.9]} 35. Nc4 {[%clk 0:00:15.6]} 35... Rb3 {[%clk 0:00:13]} 36.
Nd4+ {[%clk 0:00:15.6]} 36... Kf6 {[%clk 0:00:12]} 37. Nxb3 {[%clk 0:00:16.5]}
37... axb3 {[%clk 0:00:12.6]} 38. Rxb3 {[%clk 0:00:17.4]} 38... Ke7 {[%clk
0:00:13]} 39. a4 {[%clk 0:00:18.3]} 39... Kf6 {[%clk 0:00:13.9]} 40. a5 {[%clk
0:00:19.2]} 40... Ke7 {[%clk 0:00:14.8]} 41. a6 {[%clk 0:00:19.6]} 41... Ke6
{[%clk 0:00:14.8]} 42. a7 {[%clk 0:00:20.5]} 42... Ke7 {[%clk 0:00:15.7]} 43.
a8=Q {[%clk 0:00:20.5]} 43... Ke6 {[%clk 0:00:16.6]} 44. Rb6+ {[%clk 0:00:20.3]}
44... Kf5 {[%clk 0:00:16.2]} 45. Qd5+ {[%clk 0:00:19.9]} 45... Kg4 {[%clk
0:00:15.8]} 46. Ne3# {[%clk 0:00:20]} 1-0

[Event "Early-Titled-Tuesday-Blitz-February-13-2024"]
[Site "Chess.com"]
[Date "2024.02.13"]
[Round "11"]
[White "HaryKane"]
[Black "RobertoJBM"]
[Result "1-0"]
[WhiteElo "2595"]
[BlackElo "2775"]
[TimeControl "180+1"]
[EndTime "10:10:16 PST"]
[Termination "HaryKane won by resignation"]

1. g3 {[%clk 0:03:00.9]} 1... c6 {[%clk 0:03:00.9]} 2. Bg2 {[%clk 0:02:58.4]}
2... d5 {[%clk 0:03:01.8]} 3. Nf3 {[%clk 0:02:53.6]} 3... Bg4 {[%clk 0:03:01.4]}
4. h3 {[%clk 0:02:52.6]} 4... Bh5 {[%clk 0:02:59.9]} 5. O-O {[%clk 0:02:51.1]}
5... Nd7 {[%clk 0:02:59.6]} 6. d4 {[%clk 0:02:50.8]} 6... e6 {[%clk 0:02:59.5]}
7. Nbd2 {[%clk 0:02:49.7]} 7... Ngf6 {[%clk 0:02:58.8]} 8. Re1 {[%clk
0:02:42.9]} 8... Be7 {[%clk 0:02:58]} 9. g4 {[%clk 0:02:41.3]} 9... Bg6 {[%clk
0:02:56.9]} 10. Nh4 {[%clk 0:02:40.7]} 10... O-O {[%clk 0:02:52.9]} 11. Nxg6
{[%clk 0:02:40.5]} 11... hxg6 {[%clk 0:02:52.1]} 12. e4 {[%clk 0:02:40.6]} 12...
dxe4 {[%clk 0:02:51.5]} 13. Nxe4 {[%clk 0:02:41.5]} 13... Nxe4 {[%clk
0:02:49.8]} 14. Bxe4 {[%clk 0:02:40.5]} 14... Bd6 {[%clk 0:02:39.5]} 15. Qe2
{[%clk 0:02:30.7]} 15... Qf6 {[%clk 0:02:33.4]} 16. c3 {[%clk 0:02:22.3]} 16...
Bf4 {[%clk 0:02:32.1]} 17. Bg2 {[%clk 0:02:20.1]} 17... Bxc1 {[%clk 0:02:31.4]}
18. Raxc1 {[%clk 0:02:21]} 18... Qf4 {[%clk 0:02:23.9]} 19. b4 {[%clk
0:02:19.3]} 19... a6 {[%clk 0:02:22.4]} 20. a4 {[%clk 0:02:19.2]} 20... Nf6
{[%clk 0:02:06]} 21. b5 {[%clk 0:02:09.1]} 21... axb5 {[%clk 0:02:05.6]} 22.
axb5 {[%clk 0:02:09.4]} 22... Nd5 {[%clk 0:02:05.8]} 23. c4 {[%clk 0:01:41.7]}
23... Ne7 {[%clk 0:01:40.2]} 24. Qe3 {[%clk 0:01:26.2]} 24... Qxe3 {[%clk
0:01:34.4]} 25. fxe3 {[%clk 0:01:21.9]} 25... Ra3 {[%clk 0:01:33.9]} 26. Rb1
{[%clk 0:01:18.1]} 26... Rfa8 {[%clk 0:01:32.8]} 27. bxc6 {[%clk 0:01:08.3]}
27... bxc6 {[%clk 0:01:33.7]} 28. Rb7 {[%clk 0:01:07.9]} 28... Kf8 {[%clk
0:01:33.1]} 29. Reb1 {[%clk 0:01:04.8]} 29... Ra1 {[%clk 0:01:27.7]} 30. Rxa1
{[%clk 0:01:01.1]} 30... Rxa1+ {[%clk 0:01:28.6]} 31. Kh2 {[%clk 0:00:54.2]}
31... f6 {[%clk 0:01:26.8]} 32. Kg3 {[%clk 0:00:50.4]} 32... Ra3 {[%clk
0:01:22.1]} 33. Kf4 {[%clk 0:00:41.4]} 33... g5+ {[%clk 0:01:17.6]} 34. Ke4
{[%clk 0:00:38.9]} 34... f5+ {[%clk 0:01:15.5]} 35. Ke5 {[%clk 0:00:24.7]} 35...
Rxe3+ {[%clk 0:01:11.4]} 36. Kd6 {[%clk 0:00:25.1]} 36... Ng6 {[%clk 0:00:55.2]}
37. Bxc6 {[%clk 0:00:20.7]} 37... Nf4 {[%clk 0:00:20.5]} 38. gxf5 {[%clk
0:00:19]} 38... exf5 {[%clk 0:00:20.1]} 39. c5 {[%clk 0:00:17.5]} 39... Nxh3
{[%clk 0:00:17.6]} 40. Bd5 {[%clk 0:00:17.7]} 40... Nf4 {[%clk 0:00:15]} 41.
Rf7+ {[%clk 0:00:17.6]} 41... Ke8 {[%clk 0:00:15.5]} 42. Rxf5 {[%clk 0:00:17.1]}
42... Rd3 {[%clk 0:00:11.8]} 43. Bf7+ {[%clk 0:00:16.2]} 43... Kd8 {[%clk
0:00:11.9]} 44. d5 {[%clk 0:00:16.2]} 44... Re3 {[%clk 0:00:07.6]} 45. c6 {[%clk
0:00:14]} 45... Re7 {[%clk 0:00:07.5]} 46. Be6 {[%clk 0:00:09.3]} 46... Nxe6
{[%clk 0:00:07.2]} 47. dxe6 {[%clk 0:00:10.2]} 47... Ke8 {[%clk 0:00:06.3]} 48.
c7 {[%clk 0:00:10.1]} 48... Rxc7 {[%clk 0:00:06.3]} 49. Kxc7 {[%clk 0:00:10.2]}
49... g6 {[%clk 0:00:06.7]} 50. Rxg5 {[%clk 0:00:10]} 1-0

[Event "Early-Titled-Tuesday-Blitz-February-13-2024"]
[Site "Chess.com"]
[Date "2024.02.13"]
[Round "11"]
[White "marik_spb"]
[Black "bazar-wokzal"]
[Result "0-1"]
[WhiteElo "2462"]
[BlackElo "2650"]
[TimeControl "180+1"]
[EndTime "10:10:16 PST"]
[Termination "bazar-wokzal won on time"]

1. d4 {[%clk 0:02:56.6]} 1... Nf6 {[%clk 0:02:57.7]} 2. c4 {[%clk 0:02:56.6]}
2... Nc6 {[%clk 0:02:57.4]} 3. Nf3 {[%clk 0:02:56.6]} 3... e6 {[%clk 0:02:57.3]}
4. g3 {[%clk 0:02:55.9]} 4... Bb4+ {[%clk 0:02:56.9]} 5. Bd2 {[%clk 0:02:55.3]}
5... Qe7 {[%clk 0:02:56.8]} 6. Bg2 {[%clk 0:02:55.5]} 6... Bxd2+ {[%clk
0:02:56.7]} 7. Nbxd2 {[%clk 0:02:55.4]} 7... d6 {[%clk 0:02:56.8]} 8. O-O {[%clk
0:02:55.7]} 8... O-O {[%clk 0:02:56.7]} 9. e4 {[%clk 0:02:54.7]} 9... e5 {[%clk
0:02:57.2]} 10. d5 {[%clk 0:02:54.9]} 10... Nb8 {[%clk 0:02:57.6]} 11. b4 {[%clk
0:02:52.2]} 11... c6 {[%clk 0:02:57.7]} 12. Qe2 {[%clk 0:02:50.4]} 12... cxd5
{[%clk 0:02:57.7]} 13. cxd5 {[%clk 0:02:48.5]} 13... a5 {[%clk 0:02:57.4]} 14.
a3 {[%clk 0:02:46.9]} 14... axb4 {[%clk 0:02:57.1]} 15. axb4 {[%clk 0:02:47.1]}
15... Rxa1 {[%clk 0:02:57.1]} 16. Rxa1 {[%clk 0:02:48]} 16... Na6 {[%clk
0:02:57.2]} 17. Qb5 {[%clk 0:02:36.5]} 17... Qc7 {[%clk 0:02:53.8]} 18. Rb1
{[%clk 0:02:23.8]} 18... Bd7 {[%clk 0:02:53.4]} 19. Qc4 {[%clk 0:02:20.7]} 19...
Rc8 {[%clk 0:02:52]} 20. Qxc7 {[%clk 0:02:17]} 20... Rxc7 {[%clk 0:02:52.2]} 21.
Ne1 {[%clk 0:02:08.2]} 21... Kf8 {[%clk 0:02:41.9]} 22. f4 {[%clk 0:02:01.9]}
22... exf4 {[%clk 0:02:08.7]} 23. gxf4 {[%clk 0:02:02.8]} 23... Nh5 {[%clk
0:02:08.8]} 24. e5 {[%clk 0:01:09.4]} 24... Nxf4 {[%clk 0:02:07.7]} 25. exd6
{[%clk 0:01:09.8]} 25... Rc3 {[%clk 0:02:04]} 26. Ne4 {[%clk 0:00:40.4]} 26...
Rc4 {[%clk 0:01:53.4]} 27. Nc5 {[%clk 0:00:40.5]} 27... Nxc5 {[%clk 0:01:42.1]}
28. bxc5 {[%clk 0:00:41.4]} 28... Rxc5 {[%clk 0:01:42.3]} 29. Rxb7 {[%clk
0:00:41.1]} 29... Ke8 {[%clk 0:01:38.8]} 30. Be4 {[%clk 0:00:13.1]} 30... f5
{[%clk 0:01:34.1]} 31. Rb8+ {[%clk 0:00:07.5]} 31... Rc8 {[%clk 0:01:29.7]} 32.
Rb4 {[%clk 0:00:07.7]} 32... Nh3+ {[%clk 0:01:17.6]} 33. Kg2 {[%clk 0:00:07.9]}
33... fxe4 {[%clk 0:01:18.1]} 34. Rxe4+ {[%clk 0:00:08.6]} 34... Kd8 {[%clk
0:01:13.5]} 35. Re7 {[%clk 0:00:08.9]} 35... Nf4+ {[%clk 0:01:12.4]} 36. Kf3
{[%clk 0:00:08]} 36... Nh5 {[%clk 0:01:08.3]} 37. Nd3 {[%clk 0:00:06.3]} 37...
Rc3 {[%clk 0:01:02.9]} 38. Ke4 {[%clk 0:00:03.1]} 38... Be8 {[%clk 0:01:02.8]}
39. Kd4 {[%clk 0:00:02.7]} 39... Rc2 {[%clk 0:00:51]} 40. Nc5 {[%clk 0:00:03]}
40... Rxc5 {[%clk 0:00:31.6]} 41. Kxc5 {[%clk 0:00:03.3]} 41... h6 {[%clk
0:00:23]} 42. Ra7 {[%clk 0:00:03.3]} 42... g5 {[%clk 0:00:17.3]} 43. Kb6 {[%clk
0:00:02.6]} 43... Nf6 {[%clk 0:00:15.4]} 44. Ra8+ {[%clk 0:00:02.6]} 44... Kd7
{[%clk 0:00:15.5]} 45. Ra7+ {[%clk 0:00:01.6]} 45... Kxd6 {[%clk 0:00:15.5]} 46.
Rg7 {[%clk 0:00:01.5]} 46... Nxd5+ {[%clk 0:00:15.3]} 0-1